Cogmind - Beta 16 @@@ ROGUE MODE // 2025.11.22 @ 21:25:12 Player: Wild Zap Result: Destroyed by as-83656 with Assembled Heavy Rifle Performance ------------- Evolutions (0) 0 Regions Visited (2) 400 Robots Destroyed (3) 15 Value Destroyed (54) 54 Prototype IDs (0) 0 Alien Tech Used (0) 0 Bonus (0) 0 TOTAL SCORE: 469 Bonus ------- None Cogmind --------- Core Integrity 0/250 Matter 237/300 Energy 98/100 System Corruption 0% Temperature Cool (0) Movement Core (50) Location -10/Mines Parts ------- > --- POWER (1) -------- (None) > --- PROPULSION (2) --- (None) > --- UTILITY (2) ------ Structural Scanner Targeting Computer > --- WEAPON (2) ------- (None) > --- INVENTORY (5) ---- Aluminum Leg Heat Sink Heat Sink Peak State ------------ > --- POWER ------------ Light Ion Engine > --- PROPULSION ------- Wheel Wheel > --- UTILITY ---------- Heat Sink Structural Scanner > --- WEAPON ----------- Assault Rifle Grenade Launcher > --- INVENTORY -------- Aluminum Leg Compact Wheel EM Pulse Gun Small Laser Light Assault Rifle [Rating: 7] Favorites ----------- Power Light Ion Engine Engine Light Ion Engine Propulsion Wheel Wheel Wheel Utility Structural Scanner Device Structural Scanner Processor Targeting Computer Weapon Assault Rifle Energy Gun EM Pulse Gun Ballistic Gun Assault Rifle Launcher Grenade Launcher Build | -11 -10 -10 ------- Run | Yrd Mat Min Slots Evolved . | . . . Power . | . . . Propulsion . | . . . Utility . | . . . Weapon . | . . . Parts Attached 12 | 6 5 1 Power 1 | 1 . . Engine 1 | 1 . . Core . | . . . Reactor . | . . . Propulsion 3 | 2 1 . Treads . | . . . Leg . | . . . Wheel 3 | 2 1 . Hover . | . . . Flight . | . . . Utility 4 | 1 3 . Device 3 | 1 2 . Storage . | . . . Processor 1 | . 1 . Hackware . | . . . Protection . | . . . Artifact . | . . . Weapon 4 | 2 1 1 Energy Gun 2 | 1 . 1 Energy Cannon . | . . . Ballistic Gun 1 | 1 . . Ballistic Cannon . | . . . Launcher 1 | . 1 . Special Weapon . | . . . Impact Weapon . | . . . Slashing Weapon . | . . . Piercing Weapon . | . . . Special Melee Weapon . | . . . Unidentified Prototypes . | . . . Parts Lost 7 | . . 7 Power 1 | . . 1 Propulsion 2 | . . 2 Utility . | . . . Weapon 4 | . . 4 Highest Loss Streak 7 | . . 7 To Critical Strikes . | . . . Average Backups 4 | 2 4 4 Power . | . . . Propulsion 1 | 1 1 1 Utility . | . . 2 Weapon 2 | . 2 1 Tool/Special . | . . . Unused Backups 4 | . 3 1 Power . | . . . Propulsion 3 | . 2 1 Utility . | . . . Weapon 1 | . 1 . Tool/Special . | . . . Average Slot Usage (%) 97 | . 98 92 Engine 13 | . 14 11 Wheel 27 | . 28 25 Device 23 | . 25 14 Processor 2 | . . 14 Energy Gun 1 | . 1 2 Ballistic Gun 13 | . 14 12 Launcher 12 | . 12 11 Peak Build Rating 7 | 6 7 7 Average Rating 6 | 3 6 6 On Entrance 4 | . 6 7 Avg Prop Armor Cover (%) . | . . . Naked Turns . | . . . Heaviest Build 10 | 8 10 9 Greatest Support 26 | 20 26 26 Greatest Overweight (x) . | . . . Average Overweight (x) . | . . . Largest Inventory Capacity 5 | 5 5 5 Average Capacity 5 | 5 5 5 Most Carried 5 | 5 5 5 Average Carried 4 | 2 4 4 Final Capacity 5 | 5 5 5 Final Carried 5 | 4 5 3 Class Distribution -------------------- 100% | Mutant Dominant Class ---------------- Mutant | -10/Materials Mutant | -10/Mines Resources | -11 -10 -10 ----------- Run | Yrd Mat Min Matter Collected 402 | 269 125 8 Remotely . | . . . Salvage Created 75 | 29 28 18 Parts 7 | 2 5 . Haulers Intercepted . | . . . Recyclers Shooed . | . . . Parts Field Recycled . | . . . Retrieved Matter . | . . . Parts Self-Destructed . | . . . Prevented . | . . . Parts Restored . | . . . Kills | -11 -10 -10 ------- Run | Yrd Mat Min Combat Hostiles Destroyed 7 | 1 2 4 Guns 1 | . 1 . AOE 6 | 1 1 4 Classes Destroyed 3 | 1 1 1 Swarmer 2 | . 2 . Grunt 1 | 1 . . Assembled 4 | . . 4 Best Kill Streak 4 | 1 2 4 Combat Bots Only 4 | 1 2 4 Max Kills in Single Turn 4 | 1 1 4 Gunslinging . | . . . Exploded 4 | 1 1 4 Melee . | . . . Uniques/NPCs Destroyed . | . . . Combat | -11 -10 -10 -------- Run | Yrd Mat Min Hostile Shots Fired 75 | 2 14 59 Missed 23 | . 3 20 Hits 52 | 2 11 39 Melee 1 | . . 1 Projectile 51 | 2 11 38 AOE 1 | . . 1 Part Disruptions 2 | . . 2 Damage Taken 689 | 24 105 560 Core 254 | . 28 226 Absorbed by Shields . | . . . Core Remaining (%) 100 | 100 . . Volleys Fired 21 | 3 5 13 Largest 2 | 2 2 2 Hottest 60 | 60 50 60 Shots Fired 35 | 6 10 19 Gun 26 | 6 5 15 Cannon . | . . . Launcher 9 | . 5 4 Special . | . . . Kinetic 20 | 3 5 12 Thermal 1 | . . 1 Explosive 9 | . 5 4 Electromagnetic 5 | 3 . 2 Robot Hit Streak 4 | 2 1 4 Robot Miss Streak 2 | 2 1 2 Penetration Max . | . . . Secondary Targets . | . . . Shots Hit Robots 14 | 3 1 10 Core Hits 15 | 1 1 13 Critical Kills . | . . . Critical Parts Destroyed . | . . . Critical Strikes . | . . . Melee Attacks . | . . . Impact . | . . . Slashing . | . . . Piercing . | . . . Sneak Attacks . | . . . Combat Hostiles . | . . . Follow-up Attacks . | . . . Damage Inflicted 547 | 58 72 417 Guns 159 | 26 14 119 Cannons . | . . . Explosions 388 | 32 58 298 Melee . | . . . Ramming . | . . . Kinetic 113 | 14 14 85 Thermal 43 | 32 . 11 Explosive 356 | . 58 298 Electromagnetic 35 | 12 . 23 Impact . | . . . Slashing . | . . . Piercing . | . . . Highest Corruption . | . . . Average Corruption . | . . . Corruption Purged . | . . . Corruption Blocked . | . . . Overload Shots . | . . . Overflow Damage 9 | . 9 . Projectiles . | . . . Explosions 9 | . 9 . Melee . | . . . Knockbacks . | . . . Impact . | . . . Kinetic . | . . . Secondary . | . . . Self-Inflicted Damage 24 | . 7 17 Shots 3 | . 1 2 Rammed . | . . . Targets Rammed . | . . . Kicked . | . . . Crushed . | . . . Highest Temperature 16 | 12 . 16 Average Temperature 10 | 10 . 11 Received Heat Transfer 192 | 12 . 180 Siege Activations . | . . . Martial Activations . | . . . Shielding Activations . | . . . Robots Disrupted . | . . . Combat Hostiles . | . . . Robots Corrupted . | . . . Combat Hostiles . | . . . Parts Fried . | . . . Impact Corruptions . | . . . Robots Melted . | . . . Combat Hostiles . | . . . Parts Melted . | . . . Heat Transferred 25 | . . 25 Parts Sabotaged . | . . . Parts Stolen . | . . . Parts Stripped . | . . . Power Chain Reactions 1 | 1 . . Alert | -11 -10 -10 ------- Run | Yrd Mat Min Maximum Alert Level . | . . . Low Security (%) 100 | 100 100 100 Level 1 . | . . . Level 2 . | . . . Level 3 . | . . . Level 4 . | . . . Level 5 . | . . . High Security . | . . . Max Security . | . . . Peak Influence 60 | 20 60 15 Initial 8 | . 6 8 Average 5 | 4 5 2 Influence Increases 130 | 20 69 41 Destroy 0b10 Robot/C 60 | 20 40 . Destroy Leader 10 | . 10 . Successful Hack 4 | . 4 . Destroy Structure 41 | . 15 26 Partial Spotted 15 | . . 15 Influence Decreases 115 | 10 57 48 Entered New Map 18 | . 4 14 Time Decay 87 | 10 53 24 Lost Part 10 | . . 10 Squads Dispatched 2 | . 2 . Investigation 2 | . 2 . Extermination . | . . . Reinforcement . | . . . Assault . | . . . Garrison . | . . . Intercept . | . . . Searches Triggered . | . . . Construction Impeded . | . . . Haulers Reinforced . | . . . Active Scanning Responses . | . . . Cargo Convoy Interrupts . | . . . Stealth | -11 -10 -10 --------- Run | Yrd Mat Min Distress Signals . | . . . Communications Jammed . | . . . Distress Signals . | . . . Times Spotted 24 | 1 5 18 Peak Tracking Total 15 | 1 4 15 Tactical Retreats 1 | . . 1 Traps | -11 -10 -10 ------- Run | Yrd Mat Min Traps Triggered . | . . . Indirectly . | . . . Trap Hack Attempts . | . . . Triggered . | . . . Disarmed . | . . . Reprogrammed . | . . . Reused . | . . . Traps Extracted . | . . . Installed . | . . . Triggered . | . . . Machines | -11 -10 -10 ---------- Run | Yrd Mat Min Machines Disabled . | . . . Max in Single Turn . | . . . Machines Repaired . | . . . Machines Dismantled . | . . . Machines Sabotaged . | . . . Overloaded Fab Kills . | . . . Hacking | -11 -10 -10 --------- Run | Yrd Mat Min Machines Accessed 3 | . 3 . Terminals 3 | . 3 . Fabricators . | . . . Repair Stations . | . . . Recycling Units . | . . . Scanalyzers . | . . . Garrison Access . | . . . Total Hacks 9 | . 9 . Successful 6 | . 6 . Failed 3 | . 3 . Catastrophic . | . . . Database Lockouts . | . . . Manual . | . . . Terminals 9 | . 9 . Fabricators . | . . . Repair Stations . | . . . Recycling Units . | . . . Scanalyzers . | . . . Garrison Access . | . . . Terminal Hacks 6 | . 6 . Record 1 | . 1 . Terminal Index 1 | . 1 . Alert Level 1 | . 1 . Locate Traps 1 | . 1 . Dispatch Records 2 | . 2 . Fabricator Hacks . | . . . Repair Station Hacks . | . . . Recycling Unit Hacks . | . . . Scanalyzer . | . . . Garrison Access Hacks . | . . . Unauthorized Hacks . | . . . Terminals . | . . . Fabricators . | . . . Repair Stations . | . . . Recycling Units . | . . . Scanalyzers . | . . . Garrison Access . | . . . Data Cores Recovered . | . . . Used . | . . . Hacking Detections 3 | . 3 . Full Trace Events 2 | . 2 . Feedback Events . | . . . Feedback Blocked . | . . . Robot Schematics Acquired . | . . . Robots Built . | . . . Authchips . | . . . Time . | . . . Total Robot Build Rating . | . . . Part Schematics Acquired . | . . . Parts Built . | . . . Authchips . | . . . Time . | . . . Total Part Build Rating . | . . . Part Studies Acquired . | . . . Parts Repaired . | . . . Time . | . . . Parts Recycled . | . . . Recycled Matter . | . . . Retrieved Matter . | . . . Retrieved Components . | . . . Parts Scanalyzed . | . . . Part Schematics Acquired . | . . . Parts Damaged . | . . . Bothacking | -11 -10 -10 ------------ Run | Yrd Mat Min Used RIF Installer . | . . . Robots Hacked . | . . . Non-combat . | . . . Combat . | . . . Robot Hacks Applied . | . . . Relay Couplers Released . | . . . Fabnet Peak Effective % . | . . . Robots Rewired . | . . . Allies Hacked . | . . . Hacks Repelled . | . . . Allies | -11 -10 -10 -------- Run | Yrd Mat Min Total Allies 2 | . . 2 Largest Group 2 | . . 2 Highest-Rated Group 46 | . . 46 Highest-Rated Ally 31 | . . 31 Total Orders . | . . . Ally Attacks 11 | . . 11 Total Damage 186 | . . 186 Kills 7 | . . 7 Allies Corrupted . | . . . Allies Melted . | . . . Intel | -11 -10 -10 ------- Run | Yrd Mat Min Active Infowar (turns) 863 | . 717 146 Structural 863 | . 717 146 Robot Analysis Total . | . . . Derelict Logs Recovered 1 | . . 1 Drone Launches . | . . . Drone Recoveries . | . . . Exploration | -11 -10 -10 ------------- Run | Yrd Mat Min Turns Passed 1048 | 87 815 146 Spaces Moved 604 | 86 388 130 Core 57 | 21 . 36 Treads . | . . . Legs . | . . . Wheels 547 | 65 388 94 Hover . | . . . Flight . | . . . Fastest Speed 50 | 50 80 50 Average Speed 80 | 72 82 78 Slowest Speed 90 | 80 90 90 Overloaded Moves . | . . . Propulsion Burnouts . | . . . Robots Hopped . | . . . Potential Cave-ins . | . . . Cave-ins Triggered . | . . . Exploration Rate (%) 19 | 6 34 17 Regions Visited 2 Branch Regions 1 Pre-discovered Areas 2 | . . 2 Known Exits Taken . | . . . Unknown Exits Taken 2 | 1 1 . Scrap Searched . | . . . Spaces Dug . | . . . Terrain Destroyed 49 | . 19 30 Melee . | . . . Projectile . | . . . AOE 49 | . 19 30 Terrain Rammed . | . . . Walls Destroyed . | . . . Machines Disabled . | . . . Actions | -11 -10 -10 --------- Run | Yrd Mat Min Total 1131 | 104 872 155 Wait 471 | . 461 10 Move 602 | 85 387 130 Hop . | . . . Pick Up 16 | 10 6 . Fast Attach 1 | . 1 . Attach 9 | 6 1 2 Detach . | . . . Swap 5 | . 5 . Drop 6 | . 6 . Fire 21 | 3 5 13 Melee . | . . . Ram . | . . . Kick . | . . . Crush . | . . . Escape Stasis . | . . . Rewire . | . . . Trap . | . . . Miscellaneous . | . . . Route ------- -11/Scrapyard -10/Materials (discovered 2 exits: [*Mat] / [*Min]) -10/Mines History --------- Turn | Location | Event 2 | -11/Scrapyard | Met Revision 17 57 | -11/Scrapyard | Discovered new exit (range 8) 88 | -11/Scrapyard | Entered Materials 302 | -10/Materials | Build established: Mutant 767 | -10/Materials | Discovered new exit (range 5) 870 | -10/Materials | Discovered new exit (range 15) 903 | -10/Materials | Entered Mines 904 | -10/Mines | Learned location of Storage (-7) 907 | -10/Mines | Assembled infested the area 958 | -10/Mines | Learned location of Recycling (-7) 1032 | -10/Mines | Core integrity fell below 50% 1044 | -10/Mines | Core integrity fell below 20% 1049 | -10/Mines | Destroyed by as-83656 with Assembled Heavy Rifle Last Messages --------------- 00997_ as-01375 destroyed. 01005_ as-86245 destroyed. 01008_ NN-3PH(g) destroyed. 01014_ as-96171 destroyed. 01014_ as-11066 destroyed. 01014_ as-10496 destroyed. 01014_ as-67347 destroyed. 01015_ Lgt. Ion Engine destroyed. 01017_ Grenade Launcher destroyed. [Achievement: There's More Where That Came From] 01019_ R-06 Scavenger collects Lgt. Ion Engine. 01023_ EM Pulse Gun destroyed. 01025_ Com. Wheel destroyed. 01026_ Assault Rifle destroyed. 01032_ Wheel destroyed. 01041_ as-97796 destroyed. 01042_ Sml. Laser destroyed. 01048_ The unstable cave ceiling collapses. 01049_ as-34908 destroyed. [Achievement: First Step to Greatness] Map ----- +----------------------------------------------------+ | ????? #####??????????????????????????????????????? | | ????#######################??????????????????????? | | ????### ##################??????????????????????? | | ????## ##??????????????????????? | | ????## ######### #### ##??????????????????????? | | ???### ######### #### ##??????????????????????? | | ??#### ###?????## ##???????????????????????????? | | ??### ###?????## ##???????????????????????????? | | ?### ##??????## ##???????????????????????????? | | ?## ###??????## ##???????????????????????????? | | ?## ###??????## ###??????????????????????????? | | ?## ###??????### ####?????#####???????????????? | | ?### ########?#### ###?????#####???????????????? | | ################## ##???## ???????????????? | | ######### ##### ####### ##?????????????????? | | ###??## ### ###### ##?????????????????? | | ##??## ### ## ###??????????????????? | | ##??## ## ###??????????????????? | | ###### % ##??????????????????? | | ###### # ###??????????????????? | | #### % % ##############??????????? | | % a% ## ##########??????????? | | # ### d "%" ??????????? | | ## ## % d "????????????? | | #### ### # ######??????????????? | | ##### ###### @ ######??????????????? | | ??#### ######## ## # ##??????????????????? | | ???########??#### ### ##??????????????????? | | ????######????#################??????????????????? | | ???????????????################??????????????????? | | ?????????????????????????????????????????????????? | | | | | | | | | | | | | | | | | | | | | | | | | | | | | | | | | | | | | | | +----------------------------------------------------+ Best States ------------- Heat Dissipation 35 Energy Generation 10 Energy Capacity 125 Matter Stores 300 Matter Capacity 300 Sight Range 16 Terrain Scan Density 10 Evasion (%) 50 Targeting Accuracy 5 Item Schematics ----------------- None Robot Schematics ------------------ None Fabricated ------------ Nothing Repaired ---------- Nothing Studied --------- None Alien Tech Used ----------------- None Achievements -------------- First Step to Greatness One Hack Too Far Organ Harvest There's More Where That Came From Challenges ------------ None Game ------ Seed MetafiberFissionInjector Manual? 0 Play Time 01:17:07 Cumulative 1.2 hours Start 2025.11.20 @ 21:29:28 End 2025.11.22 @ 21:25:12 Sessions 6 Manual Loads 0 Difficulty Rogue Special Mode None Game No. 1 Rogue 1 Adventurer 0 Explorer 0 Win Type - Total 0 Types 0/0/0/0/0/0/0/0/0/0 Lore% 0 Gallery% 0 Achievement% 1 Wizard Run 0 Options --------- Layout 1 ASCII 0 Keyboard 0 Movement Mouse Keybinds 0 Fullscreen 1 Font 24/Terminus Map View 50x40 Zoom Use 45% Tactical HUD 1 Map Filters NONE Filters NONE Steam 0 RUN: e901edbf-d48e-4529-b0f9-ff7de2e408f9